[Event "FIDE WTC Prel-A 2022"]
[Site "Jerusalem"]
[Date "2022.11.21"]
[Round "3.4"]
[White "Yuffa, Daniil"]
[Black "Gharamian, Tigran"]
[Result "1/2-1/2"]
[ECO "E05"]
[WhiteElo "2587"]
[BlackElo "2601"]
[Annotator "TA"]
[PlyCount "154"]
[EventDate "2022.11.20"]
[EventType "team-tourn"]
[EventCountry "ISR"]
[SourceTitle "playchess.com"]
[Source "ChessBase"]
[SourceQuality "1"]
[WhiteTeam "Spain"]
[BlackTeam "France"]
[WhiteTeamCountry "ESP"]
[BlackTeamCountry "FRA"]
[TimeControl "2700+10"]

{[%evp 15,154,17,19,15,8,-1,25,16,43,26,29,39,33,29,43,30,29,33,36,25,26,33,31,31,22,12,12,12,12,12,12,12,12,12,12,12,12,12,12,0,0,0,3,0,0,0,0,0,0,0,0,0,0,0,0,0,0,0,0,0,0,0,0,0,0,0,0,0,0,0,0,0,0,0,0,0,0,0,0,0,0,0,0,0,0,0,0,0,0,0,0,0,0,0,0,0,0,0,0,0,0,0,0,0,0,0,0,0,0,0,0,0,0,0,0,0,0,0,0,0,0,0,0,0,0,0,0,0,0,0,0,0,0,0,0,0,0,0,0,0,0]} 1. Nf3 {[%emt 0:00:04]} d5 {[%emt 0:00:07]} 2. g3 {[%emt 0:00:04]} Nf6 {[%emt 0:00:08]} 3. Bg2 {[%emt 0:00:07]} e6 {[%emt 0:00:03]} 4. c4 {[%emt 0:00:07]} Be7 {[%emt 0:00:05]} 5. O-O {[%emt 0:00:25]} O-O {[%emt 0:00:03]} 6. d4 {[%emt 0:00:57]} dxc4 {[%emt 0:00:10]} 7. Qc2 {[%emt 0:00:10]} a6 {[%emt 0:00:45]} 8. a4 {[%emt 0:01:18]} Bd7 {[%emt 0:00:05]} 9. Rd1 {[%emt 0:00:15][%mdl 1024] White has compensation. E05: Open Catalan: 5 Nf3 Be7.} Bc6 {[%emt 0:09:50]} 10. Bg5 $1 {[%emt 0:00:03][%mdl 4] is recently more successful than 10.Nc3.} Nbd7 {[%emt 0:03:46]} 11. Nbd2 {[%emt 0:00:10] White has an edge.} b5 {[%emt 0:01:22]} 12. b3 {[%emt 0:00:07] [#]} Bxf3 $146 {[%emt 0:05:24]} ({Predecessor:} 12... Rc8 13. bxc4 bxc4 14. Qxc4 Bd5 15. Qxa6 c5 16. Qd3 cxd4 17. Qxd4 h6 18. Be3 Qa5 {½-½ (32) Dubov,D (2690)-Nakamura,H (2736) Moscow 2019}) 13. Bxf3 {[%emt 0:01:48]} cxb3 {[%emt 0:00:16]} 14. Nxb3 {[%emt 0:01:31]} Nd5 {[%emt 0:00:02]} 15. Bxe7 {[%emt 0:09:32]} (15. Bd2 {keeps more tension.} Rc8 16. axb5 axb5 17. Qc6) 15... Qxe7 {[%emt 0:00:09]} 16. Bxd5 {[%emt 0:00:52]} (16. axb5 {feels hotter.} axb5 17. Bxd5 exd5 18. Qxc7 Rxa1 19. Rxa1 Qb4 20. Qc2) 16... exd5 {[%emt 0:00:02]} 17. axb5 {[%emt 0:00:40]} (17. Qxc7 {is interesting.} b4 18. Qb7 a5 19. Qxd5 Nf6 20. Qe5) 17... axb5 {[%emt 0:00:08]} 18. Qxc7 {[%emt 0:01:18]} Rxa1 {[%emt 0:07:45]} 19. Rxa1 {[%emt 0:00:11][%cal Bd1a1,Ba1a5,Ba5b5,Bb5b8][%mdl 32] [#] And now Nc5 would win.} Qb4 {[%emt 0:00:13]} 20. Qxd7 {[%emt 0:12:17] The position is equal.} Qxb3 $11 {[%emt 0:00:11][%mdl 4096] Endgame KQR-KQR} 21. Qe7 {[%emt 0:04:04]} Qb2 {[%emt 0:02:11]} 22. Ra5 {[%emt 0:01:19]} Qxd4 {[%emt 0:00:59]} 23. Rxb5 {[%emt 0:00:12]} g6 {[%emt 0:00:17]} 24. Kg2 {[%emt 0:01:08]} Qe4+ {[%emt 0:05:46]} 25. Qxe4 {[%emt 0:00:02]} dxe4 {[%emt 0:00:01] KR-KR} 26. g4 {[%emt 0:00:06]} f5 {[%emt 0:00:01]} 27. gxf5 {[%emt 0:01:39]} Rxf5 {[%emt 0:00:02]} 28. Rb8+ {[%emt 0:01:05]} Kg7 {[%emt 0:00:47]} 29. h4 {[%emt 0:00:36]} h5 {[%emt 0:05:27]} 30. e3 {[%emt 0:01:23]} Re5 {[%emt 0:00:28] Prevents Re8.} 31. Kg3 {[%emt 0:00:19]} Kf7 {[%emt 0:00:50]} 32. Rb6 {[%emt 0:00:40]} Rf5 {[%emt 0:00:31]} 33. Rb4 {[%emt 0:00:02]} Re5 {[%emt 0:00:01]} 34. Rb2 {[%emt 0:00:17]} Rf5 {[%emt 0:00:04]} 35. Rb7+ {[%emt 0:00:56]} Kf6 {[%emt 0:00:09]} 36. Rc7 {[%emt 0:00:52]} Rf3+ {[%emt 0:00:07]} 37. Kg2 {[%emt 0:00:01]} Rf5 {[%emt 0:00:01]} 38. Rc4 {[%emt 0:00:41]} Re5 {[%emt 0:00:01]} 39. Kg3 {[%emt 0:00:04]} Kf7 {[%emt 0:00:19]} 40. Ra4 {[%emt 0:00:32]} Kf6 {[%emt 0:00:06]} 41. Ra8 {[%emt 0:00:22]} Kf7 {[%emt 0:03:18]} 42. Ra6 {[%emt 0:00:34]} Rf5 {[%emt 0:00:00]} 43. Ra4 {[%emt 0:00:35]} Re5 {[%emt 0:00:00]} 44. Ra2 {[%emt 0:00:46]} Rf5 {[%emt 0:00:30]} 45. Rb2 {[%emt 0:00:18]} Kf6 {[%emt 0:00:00]} 46. Rb4 {[%emt 0:00:09]} Re5 {[%emt 0:00:00]} 47. Rc4 {[%emt 0:00:27]} Kf7 {[%emt 0:00:00]} 48. Rd4 {[%emt 0:00:28]} Kf6 {[%emt 0:00:00]} 49. Rd1 {[%emt 0:00:09]} Rf5 {[%emt 0:00:00]} 50. Rd6+ {[%emt 0:00:07]} Kf7 {[%emt 0:00:00]} 51. Rb6 {[%emt 0:00:04]} Rf3+ {[%emt 0:00:00]} 52. Kg2 {[%emt 0:00:01]} Rf5 {[%emt 0:00:00]} 53. Kf1 {[%emt 0:00:11]} Ra5 {[%emt 0:00:00]} 54. Kg1 {[%emt 0:00:13]} Rf5 {[%emt 0:00:00]} 55. Kg2 {[%emt 0:00:01]} Re5 {[%emt 0:00:00]} 56. Kg3 {[%emt 0:00:16]} Rf5 {[%emt 0:00:00]} 57. Rb4 {[%emt 0:00:10]} Re5 {[%emt 0:00:00]} 58. Ra4 {[%emt 0:00:27]} Kf6 {[%emt 0:00:00]} 59. Ra6+ {[%emt 0:00:07]} Kf7 {[%emt 0:00:00]} 60. Rb6 {[%emt 0:00:28]} Rf5 {[%emt 0:00:00]} 61. Rb7+ {[%emt 0:00:07]} Kf6 {[%emt 0:00:00]} 62. Ra7 {[%emt 0:00:07]} Rf3+ {[%emt 0:00:00]} 63. Kg2 {[%emt 0:00:00]} Rf5 {[%emt 0:00:00]} 64. Rb7 {[%emt 0:00:10]} Re5 {[%emt 0:00:00]} 65. Rc7 {[%emt 0:00:26]} Rf5 {[%emt 0:00:00]} 66. Rc4 {[%emt 0:00:01]} Re5 {[%emt 0:00:00]} 67. Kg3 {[%emt 0:00:01]} Kf7 {[%emt 0:00:00]} 68. Ra4 {[%emt 0:00:01]} Kf6 {[%emt 0:00:00]} 69. Rb4 {[%emt 0:00:42]} Kf7 {[%emt 0:00:00]} 70. f4 {[%emt 0:00:16]} exf3 {[%emt 0:00:00]} 71. Kxf3 {[%emt 0:00:01]} g5 {[%emt 0:00:00]} 72. hxg5 {[%emt 0:00:23]} Rxg5 {[%emt 0:00:00]} 73. Rb6 {[%emt 0:00:06]} Rf5+ {[%emt 0:00:00]} 74. Kg3 {[%emt 0:00:12]} Rf6 {[%emt 0:00:00]} 75. Rxf6+ {[%emt 0:00:10]} Kxf6 {[%emt 0:00:00]} 76. Kh4 {[%emt 0:00:01]} Ke5 {[%emt 0:00:00]} 77. Kxh5 {[%emt 0:00:01]} Ke4 {[%emt 0:00:00] Weighted Error Value: White=0.01 (flawless) /Black=0.01 (flawless)} 1/2-1/2

[Event "FIDE WTC Prel-A 2022"]
[Site "Jerusalem"]
[Date "2022.11.21"]
[Round "3.5"]
[White "Solomon, Kenny"]
[Black "Van Foreest, Jorden"]
[Result "0-1"]
[ECO "D37"]
[WhiteElo "2355"]
[BlackElo "2690"]
[Annotator "TA"]
[PlyCount "90"]
[EventDate "2022.11.20"]
[EventType "team-tourn"]
[EventCountry "ISR"]
[SourceTitle "playchess.com"]
[Source "ChessBase"]
[SourceQuality "1"]
[WhiteTeam "South Africa"]
[BlackTeam "Netherlands"]
[WhiteTeamCountry "RSA"]
[BlackTeamCountry "NED"]
[TimeControl "2700+10"]

{[%evp 9,90,29,29,28,33,29,28,27,34,16,39,41,38,34,49,43,40,27,25,29,36,25,29,20,38,32,33,27,97,45,42,38,37,29,35,29,43,31,58,71,80,78,84,86,166,154,154,157,168,112,125,56,72,60,49,0,6,6,8,0,0,0,0,0,0,0,0,0,8,0,0,0,0,0,-8,-8,10,-8,-8,-10,0,-29988,-29989]} 1. d4 {[%emt 0:00:02]} Nf6 {[%emt 0:00:02]} 2. c4 {[%emt 0:00:02]} e6 {[%emt 0:00:06]} 3. Nf3 {[%emt 0:00:02]} a6 {[%emt 0:00:04]} 4. Nc3 {[%emt 0:02:18]} d5 {[%emt 0:00:04]} 5. cxd5 {[%emt 0:00:02]} exd5 {[%emt 0:00:03]} 6. Bg5 {[%emt 0:00:01] D37: Queen's Gambit Declined: 5 Bf4.} Be6 {[%emt 0:00:09]} 7. e3 {[%emt 0:00:02]} Nbd7 {[%emt 0:00:10]} 8. Bd3 {[%emt 0:00:10] White has an edge.} c6 {[%emt 0:00:50]} 9. Qb3 {[%emt 0:00:51]} Ra7 {[%emt 0:02:12]} 10. Qc2 {[%emt 0:01:05]} Bd6 {[%emt 0:00:11]} 11. Bf4 {[%emt 0:02:37]} Qc7 {[%emt 0:00:10]} 12. Bxd6 {[%emt 0:01:46]} Qxd6 {[%emt 0:00:04]} 13. h3 {[%emt 0:01:21]} O-O {[%emt 0:00:22]} 14. O-O {[%emt 0:01:51]} Re8 {[%emt 0:00:38] [#]} 15. a3 $146 {[%emt 0:03:16]} ({Predecessor:} 15. Rab1 a5 16. a3 g6 17. Rfc1 Kg7 18. b4 axb4 19. axb4 b5 20. Ne2 Ra6 21. Nf4 {0-1 (55) Smirnov,A (2406)-Motylev,A (2639) Bryansk 2021}) 15... g6 {[%emt 0:00:16]} 16. Rfe1 {[%emt 0:00:06]} Nb6 {[%emt 0:00:23]} 17. b4 {[%emt 0:04:24]} Qe7 {[%emt 0:01:12]} 18. Qb2 {[%emt 0:02:34]} Ne4 {[%emt 0:08:00]} (18... Raa8 $11) 19. Nxe4 {[%emt 0:01:54]} ({White should play} 19. Bxe4 $16 dxe4 20. Nxe4) 19... dxe4 $14 {[%emt 0:00:02]} 20. Bxe4 {[%emt 0:00:01]} Bxh3 $1 {[%emt 0:00:04]} 21. Bd3 {[%emt 0:05:27]} ({Reject} 21. gxh3 Qxe4 22. Ne5 f6 23. Qa2+ Nd5 $15) 21... Be6 {[%emt 0:00:15]} 22. e4 {[%emt 0:00:07][%cal Od4d5]} Raa8 {[%emt 0:00:01]} 23. a4 {[%emt 0:00:25][%cal Ba3a4,Ba4b5][%mdl 32]} Rad8 {[%emt 0:01:07]} 24. b5 {[%emt 0:05:41]} axb5 {[%emt 0:02:16]} 25. axb5 {[%emt 0:00:02]} c5 {[%emt 0:00:37]} 26. d5 {[%emt 0:00:24]} c4 {[%emt 0:02:32] [#]} (26... f6 $16 {was worth a try.}) 27. Bf1 $1 $18 {[%emt 0:03:30]} ({Of course not} 27. dxe6 $6 cxd3 28. exf7+ Qxf7 $11) 27... Bg4 {[%emt 0:00:02]} 28. Qd4 {[%emt 0:03:44]} Qc7 {[%emt 0:03:31]} 29. Nh2 {[%emt 0:02:05]} (29. Nd2 $18) 29... h5 $16 {[%emt 0:01:40]} 30. Rac1 {[%emt 0:01:00]} (30. Rec1 $16) 30... Rc8 $14 {[%emt 0:00:12]} 31. Nxg4 {[%emt 0:03:30]} hxg4 {[%emt 0:00:02]} 32. e5 {[%emt 0:00:00]} (32. g3 $14) 32... Qc5 {[%emt 0:01:03]} 33. Qxg4 {[%emt 0:00:00] And now e6 would win.} Qxd5 {[%emt 0:00:14]} 34. Rcd1 {[%emt 0:00:00]} Qe6 {[%emt 0:00:09]} 35. Qf3 {[%emt 0:00:00] aiming for Rd6.} c3 {[%emt 0:02:57]} 36. Rc1 {[%emt 0:00:00]} Nd5 {[%emt 0:01:08][%cal Bb6d5,Bd5f6,Bf6g4][%mdl 32]} 37. Re4 {[%emt 0:00:01]} Nf6 {[%emt 0:01:12]} 38. Re3 {[%emt 0:00:30]} Ng4 {[%emt 0:00:11]} 39. Rexc3 {[%emt 0:00:09]} Qxe5 {[%emt 0:00:04][%csl Gg4][%cal Re5h2]} 40. g3 {[%emt 0:00:28]} Qh8 {[%emt 0:00:31][%csl Gg4][%cal Rh8h2]} 41. Bg2 {[%emt 0:00:18]} Rxc3 $40 {[%emt 0:03:11][%mdl 128] Black mounts an attack.} 42. Qxc3 {[%emt 0:00:01]} Qh2+ {[%emt 0:00:01]} 43. Kf1 {[%emt 0:00:01]} Qh5 {[%emt 0:00:01]} 44. Qc4 {[%emt 0:00:30]} Qf5 {[%emt 0:00:22][%csl Gg4][%cal Rf5f2]} 45. Rc2 {[%emt 0:00:10][%mdl 8192] [#]} (45. Qc5 $11 Qf6 46. Kg1) 45... Ne3+ {[%emt 0:00:02] Never resign too early!  Weighted Error Value: White=0.26 (precise) /Black=0.08 (flawless)} 0-1

[Event "FIDE WTC Prel-A 2022"]
[Site "Jerusalem"]
[Date "2022.11.21"]
[Round "3.6"]
[White "Van Foreest, Lucas"]
[Black "Cawdery, Daniel"]
[Result "1-0"]
[ECO "A57"]
[WhiteElo "2585"]
[BlackElo "2396"]
[Annotator "TA"]
[PlyCount "47"]
[EventDate "2022.11.20"]
[EventType "team-tourn"]
[EventCountry "ISR"]
[SourceTitle "playchess.com"]
[Source "ChessBase"]
[SourceQuality "1"]
[WhiteTeam "Netherlands"]
[BlackTeam "South Africa"]
[WhiteTeamCountry "NED"]
[BlackTeamCountry "RSA"]
[TimeControl "2700+10"]

{[%evp 22,47,56,69,70,36,86,79,83,37,35,0,0,0,0,-15,135,145,121,120,282,286,290,287,472,480,521,450]} 1. d4 {[%emt 0:00:07]} Nf6 {[%emt 0:00:02]} 2. c4 {[%emt 0:00:22]} c5 {[%emt 0:00:25]} 3. d5 {[%emt 0:00:03]} b5 {[%emt 0:00:01]} 4. cxb5 {[%emt 0:00:01]} a6 {[%emt 0:00:01]} 5. e3 {[%emt 0:00:03]} g6 {[%emt 0:00:09]} 6. Nc3 {[%emt 0:00:03]} Bg7 {[%emt 0:00:38]} 7. a4 {[%emt 0:00:03]} O-O {[%emt 0:00:22]} 8. e4 {[%emt 0:00:05]} d6 {[%emt 0:00:26]} 9. Nf3 {[%emt 0:00:07]} axb5 {[%emt 0:01:35]} 10. Bxb5 {[%emt 0:00:03]} Ba6 {[%emt 0:00:01]} 11. Bxa6 {[%emt 0:03:31]} Nxa6 {[%emt 0:00:03]} 12. O-O {[%emt 0:00:05]} Nd7 {[%emt 0:06:04] A57: Benko/Volga Gambit.} 13. Rb1 {[%emt 0:08:46] [#]} Nb4 $146 {[%emt 0:03:31]} (13... Nb6 $14) ({Predecessor:} 13... Qa5 14. Nb5 Rfc8 15. Bd2 Qb6 16. Bc3 Nc7 17. Bxg7 Kxg7 18. Na3 Qb4 19. e5 Qxa4 20. exd6 exd6 21. Qd3 Nf6 22. Nc4 Qa6 23. Ng5 Nfxd5 24. Ne4 Nb4 {0-1 (24) Tomovska,I (2049)-Gocheva,R (2218) Pamporovo 2001}) 14. Nb5 $16 {[%emt 0:03:29]} c4 {[%emt 0:04:48] White is better.} 15. Nfd4 {[%emt 0:05:39]} (15. b3 $16) 15... Nc5 $14 {[%emt 0:00:58][%csl LRa4,LRe4]} 16. Bd2 {[%emt 0:02:40]} Nbd3 {[%emt 0:02:30]} 17. Nc6 {[%emt 0:03:20]} Qd7 {[%emt 0:00:26]} 18. Bc3 {[%emt 0:00:26]} e5 {[%emt 0:03:12]} ({Don't play} 18... Nxe4 19. Bxg7 Kxg7 20. Qc2 $14) (18... Rxa4 $11 19. Bxg7 Kxg7) 19. a5 $16 {[%emt 0:02:14][%cal Ba4a5,Ba5a6,Ba6a7][%mdl 32] [#] Threatens to win with Na3.} Nxe4 {[%emt 0:01:04]} 20. Na3 {[%emt 0:00:05]} Nxc3 $2 {[%emt 0:13:36] This move loses the game for Black.} (20... Nf6 $16 21. Nxc4 Nxd5 22. N6xe5 dxe5 23. Qxd3 Qe6) 21. bxc3 $18 {[%emt 0:00:02]} e4 {[%emt 0:00:36]} 22. Nxc4 {[%emt 0:00:02]} Rae8 $2 {[%emt 0:00:09] [#]} (22... Qc7 {might work better.} 23. Nb6 Ra6) 23. a6 {[%emt 0:00:19]} Qf5 {[%emt 0:01:31]} 24. a7 {[%emt 0:17:35] Weighted Error Value: White=0.10 (very precise) /Black=0.69} 1-0

[Event "FIDE WTC Prel-A 2022"]
[Site "Jerusalem"]
[Date "2022.11.21"]
[Round "3.7"]
[White "Barrish, Daniel"]
[Black "Warmerdam, Max"]
[Result "0-1"]
[ECO "D31"]
[WhiteElo "2257"]
[BlackElo "2617"]
[Annotator "TA"]
[PlyCount "62"]
[EventDate "2022.11.20"]
[EventType "team-tourn"]
[EventCountry "ISR"]
[SourceTitle "playchess.com"]
[Source "ChessBase"]
[SourceQuality "1"]
[WhiteTeam "South Africa"]
[BlackTeam "Netherlands"]
[WhiteTeamCountry "RSA"]
[BlackTeamCountry "NED"]
[TimeControl "2700+10"]

{[%evp 9,62,16,21,25,21,21,26,21,19,18,23,18,21,21,27,18,25,19,26,16,27,14,25,0,27,9,7,7,43,37,37,46,43,0,3,3,6,1,28,-27,-25,-67,-70,-110,-94,-125,-113,-763,-762,-737,-749,-692,-612,-574,-579]} 1. d4 {[%emt 0:00:06]} d5 {[%emt 0:00:03]} 2. c4 {[%emt 0:00:02]} e6 {[%emt 0:00:02]} 3. Nc3 {[%emt 0:00:03]} a6 {[%emt 0:00:10]} 4. cxd5 {[%emt 0:00:05]} exd5 {[%emt 0:00:02]} 5. Bf4 {[%emt 0:00:12]} Nf6 {[%emt 0:00:03]} 6. e3 {[%emt 0:00:08] D31: Queen's Gambit Declined: Semi-Slav without ...Nf6 (+ Marshall Gambit and Noteboom) and Exchange Variation lines without ...Nf6.} Bd6 {[%emt 0:00:02]} 7. Bg5 {[%emt 0:00:13]} c6 {[%emt 0:00:10]} 8. Bd3 {[%emt 0:00:18] White has an edge.} O-O {[%emt 0:00:03]} 9. Qc2 {[%emt 0:01:16][%cal Od3h7] And now Bxh7+! would win.} h6 {[%emt 0:00:12]} 10. Bh4 {[%emt 0:00:06]} Re8 {[%emt 0:00:49]} 11. Nge2 {[%emt 0:00:32]} a5 {[%emt 0:00:43]} 12. h3 {[%emt 0:00:32]} Na6 {[%emt 0:00:35]} 13. a3 {[%emt 0:00:25] Prevents Nb4.} Nc7 {[%emt 0:00:10]} 14. O-O {[%emt 0:00:44] 14.Bf5 is the recent fashion.} Ne6 {[%emt 0:01:31]} 15. Rab1 {[%emt 0:01:32]} Ng5 {[%emt 0:02:08] [#]} 16. Kh1 $146 {[%emt 0:07:01]} (16. f4 $5 {[%cal Rf4g5]} Ne6 17. Ng3 $11) ({Predecessor:} 16. Bf5 Bxf5 17. Qxf5 Nfe4 18. Nxe4 Rxe4 19. Bxg5 hxg5 20. g3 g6 21. Qf3 Qe7 22. Nc3 {0-1 (53) Durak,C (2275)-Warmerdam,M (2535) Belgrade 2021}) 16... Bd7 {[%emt 0:04:26]} 17. Ng3 {[%emt 0:06:04][%cal Be2g3,Bg3e4,Be4f2][%mdl 32]} (17. f4 $5 {[%cal Rf4g5]} Ne6 18. e4 dxe4 19. Nxe4 $11) 17... Qc8 {[%emt 0:08:07][%cal Od7h3]} 18. f4 {[%emt 0:08:22]} Ngh7 {[%emt 0:06:54]} (18... Nge4 $5) 19. e4 {[%emt 0:02:43]} dxe4 {[%emt 0:00:02]} 20. Ngxe4 {[%emt 0:00:59]} Be7 {[%emt 0:00:20][%cal Od7h3]} 21. Nf2 {[%emt 0:02:33]} Nf8 {[%emt 0:00:27]} 22. f5 {[%emt 0:00:58]} N8h7 {[%emt 0:01:22]} 23. Rbe1 {[%emt 0:01:59]} Qc7 {[%emt 0:00:22]} 24. Re5 {[%emt 0:06:52]} (24. Bc4 $142 Bd8 25. Nd3 Rxe1 26. Bxe1) 24... Qb6 $11 {[%emt 0:02:12]} 25. Rfe1 {[%emt 0:03:12]} Qxd4 {[%emt 0:00:17]} 26. Rxe7 {[%emt 0:00:34]} Qxh4 {[%emt 0:00:46]} 27. Qb3 {[%emt 0:00:12]} Ng5 {[%emt 0:00:30]} 28. Bc4 $2 {[%emt 0:01:36][%mdl 8192] [#] Now White is beyond hope.} Rxe7 $19 {[%emt 0:00:10] Black is clearly winning.} 29. Rxe7 {[%emt 0:00:03]} Qxf2 {[%emt 0:00:12]} 30. Qxb7 {[%emt 0:00:23]} Re8 {[%emt 0:01:14]} 31. Rxe8+ {[%emt 0:00:21]} Bxe8 {[%emt 0:00:02] Weighted Error Value: White=0.33/Black=0.10 (very precise)} 0-1

[Event "FIDE WTC Prel-A 2022"]
[Site "Jerusalem"]
[Date "2022.11.21"]
[Round "3.8"]
[White "Kevlishvili, Robby"]
[Black "Mhango, Banele"]
[Result "1-0"]
[ECO "B90"]
[WhiteElo "2536"]
[BlackElo "2210"]
[Annotator "TA"]
[PlyCount "69"]
[EventDate "2022.11.20"]
[EventType "team-tourn"]
[EventCountry "ISR"]
[SourceTitle "playchess.com"]
[Source "ChessBase"]
[SourceQuality "1"]
[WhiteTeam "Netherlands"]
[BlackTeam "South Africa"]
[WhiteTeamCountry "NED"]
[BlackTeamCountry "RSA"]
[TimeControl "2700+10"]

{[%evp 21,69,12,16,27,79,77,71,77,104,89,122,110,136,113,133,131,153,149,156,143,120,90,191,217,255,252,453,464,455,456,440,429,537,534,489,490,714,688,640,463,731,712,1110,1060,1033,1030,2658,2685,2288,1783]} 1. e4 {[%emt 0:00:03]} c5 {[%emt 0:00:03]} 2. Nf3 {[%emt 0:00:02]} d6 {[%emt 0:00:06]} 3. d4 {[%emt 0:00:04]} cxd4 {[%emt 0:00:04]} 4. Nxd4 {[%emt 0:00:04]} Nf6 {[%emt 0:00:03]} 5. Nc3 {[%emt 0:00:03]} a6 {[%emt 0:00:01]} 6. Be3 {[%emt 0:00:06]} e5 {[%emt 0:00:16]} 7. Nf3 {[%emt 0:00:03]} Qc7 {[%emt 0:00:20]} 8. a4 {[%emt 0:00:08]} Be7 {[%emt 0:00:56]} 9. Be2 {[%emt 0:00:10]} O-O {[%emt 0:00:04]} 10. a5 {[%emt 0:01:20]} h6 {[%emt 0:00:43]} 11. O-O {[%emt 0:00:07]} Be6 {[%emt 0:00:18]} 12. Nd5 {[%emt 0:01:13] B90: Sicilian Najdorf: Unusual White 6th moves, 6 Be3 Ng4 and 6 Be3 e5.} Bxd5 {[%emt 0:00:14]} (12... Nxd5 $11 13. exd5 Bf5) 13. exd5 $16 {[%emt 0:00:02]} Nbd7 {[%emt 0:00:02]} 14. c4 {[%emt 0:00:26] Prevents b5. White is better.} Rfe8 {[%emt 0:04:38] [#]} 15. b4 $146 {[%emt 0:00:43]} ({Predecessor:} 15. Nd2 Bf8 16. b4 Rac8 17. Rc1 e4 18. Qb3 Qd8 19. Rc2 Ne5 20. f3 exf3 21. Nxf3 {0-1 (31) Esquivias Quintero,L (2134)-Garriga Cazorla,P (2461) Salobrena 2015}) 15... Bf8 {[%emt 0:01:03]} 16. h3 {[%emt 0:03:02]} Nh5 {[%emt 0:02:05]} 17. Re1 {[%emt 0:01:58]} g6 {[%emt 0:02:29]} 18. Rc1 {[%emt 0:00:49]} Kh7 {[%emt 0:03:15]} 19. Nd2 {[%emt 0:03:07]} Ng7 {[%emt 0:01:24]} 20. Bd3 {[%emt 0:03:47]} f5 {[%emt 0:01:13]} 21. Nb3 {[%emt 0:04:55]} f4 {[%emt 0:02:18]} (21... Nf6 $16 {keeps fighting.}) 22. Qg4 $18 {[%emt 0:03:30]} e4 {[%emt 0:05:45]} 23. Bb6 {[%emt 0:00:03]} ({Weaker is} 23. Qxf4 exd3 24. Qxh6+ Kg8 $14) 23... Nxb6 $2 {[%emt 0:01:39] [#]} (23... Ne5 24. Bxc7 Nxg4) 24. axb6 {[%emt 0:00:11] White is clearly winning.} Qf7 {[%emt 0:01:11]} 25. Bxe4 {[%emt 0:00:17]} Re5 {[%emt 0:00:08]} 26. Bd3 {[%emt 0:03:00]} Rae8 {[%emt 0:00:52]} 27. Rxe5 {[%emt 0:00:50]} dxe5 {[%emt 0:00:05]} 28. Nc5 {[%emt 0:01:02]} Bxc5 {[%emt 0:00:03]} (28... Nf5 $142 29. Re1 a5) 29. bxc5 {[%emt 0:00:01]} e4 {[%emt 0:00:03]} 30. Bb1 {[%emt 0:01:27]} h5 {[%emt 0:03:11]} (30... Qf6 $142 31. Re1 h5) 31. Qg5 {[%emt 0:00:42]} e3 {[%emt 0:01:36]} 32. fxe3 {[%emt 0:00:03]} fxe3 {[%emt 0:00:04]} 33. Rf1 {[%emt 0:00:10]} e2 {[%emt 0:01:05]} 34. Rxf7 {[%emt 0:00:04] Active counter play!} e1=Q+ {[%emt 0:00:05]} 35. Rf1 {[%emt 0:00:02] Weighted Error Value: White=0.15 (very precise) /Black=0.46} 1-0

[Event "FIDE WTC Prel-A 2022"]
[Site "Jerusalem"]
[Date "2022.11.21"]
[Round "3.9"]
[White "Lu, Shanglei"]
[Black "Ivanchuk, Vasyl"]
[Result "1/2-1/2"]
[ECO "C43"]
[WhiteElo "2605"]
[BlackElo "2673"]
[Annotator "TA"]
[PlyCount "29"]
[EventDate "2022.11.20"]
[EventType "team-tourn"]
[EventCountry "ISR"]
[SourceTitle "playchess.com"]
[Source "ChessBase"]
[SourceQuality "1"]
[WhiteTeam "China"]
[BlackTeam "Ukraine"]
[WhiteTeamCountry "CHN"]
[BlackTeamCountry "UKR"]
[TimeControl "2700+10"]

{[%evp 9,29,0,0,0,0,0,0,0,0,0,0,0,13,0,0,0,0,0,0,0,0,0]} 1. e4 {[%emt 0:00:04]} e5 {[%emt 0:00:03]} 2. Nf3 {[%emt 0:00:07]} Nf6 {[%emt 0:00:04][%cal Bg8f6,Bf6e4,Be4f2,Bf2h1][%mdl 32]} 3. d4 {[%emt 0:00:57]} Nxe4 {[%emt 0:00:06]} 4. dxe5 {[%emt 0:01:41]} Bc5 {[%emt 0:01:21]} 5. Bc4 {[%emt 0:02:38]} Nxf2 {[%emt 0:00:06] The position is equal.} (5... Bxf2+ $2 6. Kf1 d5 7. Qxd5 Qxd5 8. Bxd5 $16) 6. Bxf7+ $1 {[%emt 0:00:46][%mdl 64] [#] Decoy. C43: Petroff Defence: 3 d4.} Kxf7 {[%emt 0:00:02]} 7. Qd5+ {[%emt 0:00:03]} Kg6 {[%emt 0:00:02]} 8. Qxc5 {[%emt 0:00:26]} Nxh1 {[%emt 0:00:02]} 9. Nc3 {[%emt 0:02:16] Nd5 is the strong threat.} h6 {[%emt 0:04:08] [#] And now ...Kh7 would win.} ({Resist} 9... d5 10. Nxd5 h6 11. Qc4 $16) 10. Qc4 {[%emt 0:01:33] Black must now prevent Nd5.} Nc6 $5 {[%emt 0:04:59][%mdl 4] [#] Exploring less charted territory.} 11. Nh4+ $5 $146 {[%emt 0:21:10][%mdl 8] White has compensation. New and interesting.} ({Predecessor:} 11. Nd5 d6 12. Nf4+ Kh7 13. Qe4+ Kg8 14. Qd5+ Kh7 15. Qe4+ Kg8 16. Qd5+ Kh7 17. Qe4+ {½-½ (17) Anton Guijarro,D (2692)-Vidit,S (2723) Prague 2022}) 11... Kh7 {[%emt 0:03:55]} 12. Qe4+ {[%emt 0:02:38]} Kg8 {[%emt 0:00:05][%cal Od7d5]} 13. Qd5+ {[%emt 0:01:15]} Kh7 {[%emt 0:01:50]} 14. Qe4+ {[%emt 0:00:17]} Kg8 {[%emt 0:00:02][%cal Oc6e5] Hoping for ...Nxe5!} 15. Qd5+ {[%emt 0:00:22] An interesting draw.  Weighted Error Value: White=0.02 (flawless) /Black=0.03 (flawless)} 1/2-1/2